[Event "Titled Tuesday Blitz May 16 Late 2023"]
[White "Celestino, Rafael Teixeira"]
[Black "Vega Gutierrez, Sabrina"]
[WhiteFideId "2108925"]
[BlackFideId "2219026"]
[WhiteElo "2335"]
[BlackElo "2209"]
[Result "1/2-1/2"]
[Round "09"]
[TimeControl "180+2"]
[Date "2023.05.16"]
[WhiteClock "0:00:08"]
[BlackClock "0:00:02"]

1. e4 {[%clk 0:03:00]}  c5 {[%clk 0:02:58]} 2. Nf3 {[%clk 0:03:01]}  Nc6 {[%clk 0:02:57]} 3. d4 {[%clk 0:03:02]}  cxd4 {[%clk 0:02:57]} 4. Nxd4 {[%clk 0:03:03]}  Nf6 {[%clk 0:02:58]} 5. Nc3 {[%clk 0:03:03]}  e5 {[%clk 0:02:58]} 6. Ndb5 {[%clk 0:03:03]}  d6 {[%clk 0:02:59]} 7. Bg5 {[%clk 0:03:03]}  a6 {[%clk 0:02:59]} 8. Na3 {[%clk 0:03:04]}  b5 {[%clk 0:03:00]} 9. Bxf6 {[%clk 0:03:03]}  gxf6 {[%clk 0:03:00]} 10. Nd5 {[%clk 0:03:03]}  Bg7 {[%clk 0:03:01]} 11. c3 {[%clk 0:03:04]}  f5 {[%clk 0:03:00]} 12. f3 {[%clk 0:03:03]}  fxe4 {[%clk 0:02:56]} 13. fxe4 {[%clk 0:03:04]}  Qh4+ {[%clk 0:02:55]} 14. Kd2 {[%clk 0:03:01]}  O-O {[%clk 0:02:47]} 15. Bd3 {[%clk 0:02:59]}  b4 {[%clk 0:02:35]} 16. cxb4 {[%clk 0:02:54]}  Bh6+ {[%clk 0:02:32]} 17. Kc3 {[%clk 0:02:47]}  Be6 {[%clk 0:02:20]} 18. Nc2 {[%clk 0:02:42]}  Rac8 {[%clk 0:02:15]} 19. Kb3 {[%clk 0:02:38]}  f5 {[%clk 0:02:07]} 20. Qf3 {[%clk 0:02:23]}  Bxd5+ {[%clk 0:01:28]} 21. exd5 {[%clk 0:02:14]}  Nd4+ {[%clk 0:01:29]} 22. Nxd4 {[%clk 0:02:12]}  Qxd4 {[%clk 0:01:30]} 23. Bxa6 {[%clk 0:01:31]}  e4 {[%clk 0:01:14]} 24. Qg3+ {[%clk 0:01:30]}  Bg7 {[%clk 0:01:15]} 25. Bxc8 {[%clk 0:01:15]}  Qxb2+ {[%clk 0:01:14]} 26. Ka4 {[%clk 0:01:14]}  Rxc8 {[%clk 0:01:15]} 27. Qxd6 {[%clk 0:01:05]}  Qc2+ {[%clk 0:01:08]} 28. Kb5 {[%clk 0:00:58]}  Qc4+ {[%clk 0:01:03]} 29. Kb6 {[%clk 0:00:46]}  Bf8 {[%clk 0:00:27]} 30. Qe6+ {[%clk 0:00:43]}  Kh8 {[%clk 0:00:28]} 31. Qe5+ {[%clk 0:00:11]}  Bg7 {[%clk 0:00:28]} 32. Qd6 {[%clk 0:00:11]}  e3 {[%clk 0:00:09]} 33. Rac1 {[%clk 0:00:10]}  Qd4+ {[%clk 0:00:03]} 34. Kb7 {[%clk 0:00:07]}  Rg8 {[%clk 0:00:03]} 35. Rc8 {[%clk 0:00:06]}  e2 {[%clk 0:00:01]} 36. Rxg8+ {[%clk 0:00:05]}  Kxg8 {[%clk 0:00:02]} 37. Qe6+ {[%clk 0:00:06]}  Kf8 {[%clk 0:00:01]} 38. Qd6+ {[%clk 0:00:06]}  Kf7 {[%clk 0:00:02]} 39. Qe6+ {[%clk 0:00:07]}  Kf8 {[%clk 0:00:02]} 40. Qd6+ {[%clk 0:00:07]}  Kf7 {[%clk 0:00:02]} 41. Qe6+ {[%clk 0:00:08]}  Kf8 {[%clk 0:00:02]} 1/2-1/2


[Site "https://www.chess.com"]

[Event "Titled Tuesday Blitz May 16 Late 2023"]
[White "merinasian"]
[Black "Rose, Felix"]
[BlackFideId "5105722"]
[WhiteElo "2429"]
[BlackElo "2039"]
[Result "1-0"]
[Round "09"]
[TimeControl "180+2"]
[Date "2023.05.16"]
[WhiteClock "0:00:48"]
[BlackClock "0:00:34"]

1. d4 {[%clk 0:03:00]}  d5 {[%clk 0:02:59]} 2. Nf3 {[%clk 0:03:00]}  Nf6 {[%clk 0:02:59]} 3. g3 {[%clk 0:03:01]}  b5 {[%clk 0:02:58]} 4. Bg2 {[%clk 0:02:57]}  Bb7 {[%clk 0:02:58]} 5. O-O {[%clk 0:02:55]}  e6 {[%clk 0:02:58]} 6. a4 {[%clk 0:02:54]}  b4 {[%clk 0:02:58]} 7. c4 {[%clk 0:02:54]}  c5 {[%clk 0:02:57]} 8. Bg5 {[%clk 0:02:50]}  dxc4 {[%clk 0:02:50]} 9. Nbd2 {[%clk 0:02:09]}  c3 {[%clk 0:02:30]} 10. bxc3 {[%clk 0:02:06]}  bxc3 {[%clk 0:02:31]} 11. Qb3 {[%clk 0:02:04]}  Bd5 {[%clk 0:02:30]} 12. Qxc3 {[%clk 0:02:03]}  cxd4 {[%clk 0:02:24]} 13. Nxd4 {[%clk 0:01:41]}  Bxg2 {[%clk 0:02:17]} 14. Kxg2 {[%clk 0:01:40]}  Qd5+ {[%clk 0:02:05]} 15. N2f3 {[%clk 0:01:32]}  Be7 {[%clk 0:02:01]} 16. Nb5 {[%clk 0:01:24]}  Na6 {[%clk 0:01:51]} 17. Rfd1 {[%clk 0:01:09]}  Qb7 {[%clk 0:01:25]} 18. Bxf6 {[%clk 0:01:08]}  Bxf6 {[%clk 0:00:58]} 19. Nd6+ {[%clk 0:01:07]}  Ke7 {[%clk 0:00:52]} 20. Qxf6+ {[%clk 0:01:06]}  gxf6 {[%clk 0:00:50]} 21. Nxb7 {[%clk 0:01:06]}  Rab8 {[%clk 0:00:49]} 22. Na5 {[%clk 0:01:06]}  Rhc8 {[%clk 0:00:47]} 23. Rac1 {[%clk 0:01:06]}  Nb4 {[%clk 0:00:41]} 24. Nd4 {[%clk 0:01:00]}  Rxc1 {[%clk 0:00:39]} 25. Rxc1 {[%clk 0:00:59]}  Rb6 {[%clk 0:00:39]} 26. Nac6+ {[%clk 0:00:58]}  Nxc6 {[%clk 0:00:39]} 27. Nxc6+ {[%clk 0:00:58]}  Kd6 {[%clk 0:00:39]} 28. Nxa7 {[%clk 0:00:56]}  Ra6 {[%clk 0:00:40]} 29. Nb5+ {[%clk 0:00:50]}  Kd7 {[%clk 0:00:39]} 30. Rc7+ {[%clk 0:00:48]}  Kd8 {[%clk 0:00:34]} 31. Ra7 {[%clk 0:00:48]} 1-0


[Site "https://www.chess.com"]

[Event "Titled Tuesday Blitz May 16 Late 2023"]
[White "Novikova, Galina"]
[Black "Alexikov, Alexander"]
[WhiteFideId "4157095"]
[BlackFideId "14103958"]
[WhiteElo "1953"]
[BlackElo "2186"]
[Result "0-1"]
[Round "09"]
[TimeControl "180+2"]
[Date "2023.05.16"]
[WhiteClock "0:00:00"]
[BlackClock "0:00:18"]

1. e4 {[%clk 0:03:00]}  c5 {[%clk 0:02:58]} 2. Nf3 {[%clk 0:03:00]}  d6 {[%clk 0:02:58]} 3. d4 {[%clk 0:03:01]}  Nf6 {[%clk 0:02:58]} 4. Nc3 {[%clk 0:03:01]}  cxd4 {[%clk 0:02:58]} 5. Nxd4 {[%clk 0:03:02]}  a6 {[%clk 0:02:58]} 6. Rg1 {[%clk 0:03:00]}  h5 {[%clk 0:02:56]} 7. h3 {[%clk 0:03:00]}  h4 {[%clk 0:02:53]} 8. Be3 {[%clk 0:02:58]}  b5 {[%clk 0:02:49]} 9. f3 {[%clk 0:02:37]}  Bb7 {[%clk 0:02:46]} 10. Qd2 {[%clk 0:02:37]}  Nbd7 {[%clk 0:02:43]} 11. O-O-O {[%clk 0:02:37]}  e6 {[%clk 0:02:43]} 12. Kb1 {[%clk 0:02:36]}  Be7 {[%clk 0:02:40]} 13. Bf2 {[%clk 0:02:22]}  Rc8 {[%clk 0:02:35]} 14. Qe1 {[%clk 0:02:20]}  Nh5 {[%clk 0:02:19]} 15. Qd2 {[%clk 0:02:13]}  g5 {[%clk 0:02:11]} 16. Be3 {[%clk 0:01:55]}  Ne5 {[%clk 0:02:00]} 17. f4 {[%clk 0:01:37]}  gxf4 {[%clk 0:01:57]} 18. Bxf4 {[%clk 0:01:38]}  Nxf4 {[%clk 0:01:35]} 19. Qxf4 {[%clk 0:01:38]}  Rxc3 {[%clk 0:01:33]} 20. bxc3 {[%clk 0:01:34]}  Qc7 {[%clk 0:01:32]} 21. Qe3 {[%clk 0:01:25]}  Rg8 {[%clk 0:01:07]} 22. g4 {[%clk 0:01:19]}  hxg3 {[%clk 0:01:05]} 23. Rxg3 {[%clk 0:01:19]}  Rxg3 {[%clk 0:01:04]} 24. Qxg3 {[%clk 0:01:20]}  Bxe4 {[%clk 0:00:54]} 25. Nb3 {[%clk 0:01:07]}  Bf3 {[%clk 0:00:48]} 26. Re1 {[%clk 0:01:00]}  Qxc3 {[%clk 0:00:45]} 27. Qf2 {[%clk 0:00:43]}  Bg5 {[%clk 0:00:28]} 28. h4 {[%clk 0:00:39]}  Bf4 {[%clk 0:00:27]} 29. h5 {[%clk 0:00:27]}  Nc4 {[%clk 0:00:26]} 30. Bxc4 {[%clk 0:00:27]}  bxc4 {[%clk 0:00:25]} 31. Rf1 {[%clk 0:00:00]}  Be4 {[%clk 0:00:18]} 0-1


[Site "https://www.chess.com"]

[Event "Titled Tuesday Blitz May 16 Late 2023"]
[White "De Souza, Cristiano Gomes"]
[Black "reevecanada"]
[WhiteFideId "2151758"]
[WhiteElo "2068"]
[BlackElo "2391"]
[Result "0-1"]
[Round "09"]
[TimeControl "180+2"]
[Date "2023.05.16"]
[WhiteClock "0:00:09"]
[BlackClock "0:00:57"]

1. d3 {[%clk 0:02:59]}  c5 {[%clk 0:02:52]} 2. Nf3 {[%clk 0:03:00]}  Nf6 {[%clk 0:02:52]} 3. g3 {[%clk 0:03:01]}  d6 {[%clk 0:02:52]} 4. Bg2 {[%clk 0:03:01]}  h5 {[%clk 0:02:52]} 5. O-O {[%clk 0:03:02]}  e6 {[%clk 0:02:51]} 6. c4 {[%clk 0:03:01]}  Be7 {[%clk 0:02:51]} 7. Nc3 {[%clk 0:03:00]}  Nc6 {[%clk 0:02:52]} 8. a3 {[%clk 0:02:54]}  h4 {[%clk 0:02:49]} 9. Nxh4 {[%clk 0:02:52]}  Rxh4 {[%clk 0:02:48]} 10. gxh4 {[%clk 0:02:52]}  Nd7 {[%clk 0:02:47]} 11. Rb1 {[%clk 0:02:51]}  Bxh4 {[%clk 0:02:44]} 12. b4 {[%clk 0:02:50]}  Nd4 {[%clk 0:02:43]} 13. e3 {[%clk 0:02:49]}  Nf5 {[%clk 0:02:43]} 14. Ne4 {[%clk 0:02:47]}  Qc7 {[%clk 0:02:32]} 15. Bb2 {[%clk 0:02:38]}  g6 {[%clk 0:02:29]} 16. Qe2 {[%clk 0:02:34]}  Rb8 {[%clk 0:02:24]} 17. Ng3 {[%clk 0:02:25]}  b6 {[%clk 0:02:22]} 18. e4 {[%clk 0:02:20]}  Nd4 {[%clk 0:02:20]} 19. Bxd4 {[%clk 0:02:20]}  cxd4 {[%clk 0:02:21]} 20. f4 {[%clk 0:02:19]}  Bb7 {[%clk 0:02:18]} 21. Qg4 {[%clk 0:02:16]}  Bf6 {[%clk 0:02:17]} 22. f5 {[%clk 0:02:13]}  Ne5 {[%clk 0:02:17]} 23. Qe2 {[%clk 0:02:09]}  Ke7 {[%clk 0:02:14]} 24. fxg6 {[%clk 0:02:08]}  fxg6 {[%clk 0:02:14]} 25. Rf2 {[%clk 0:02:09]}  Bg5 {[%clk 0:02:13]} 26. Kh1 {[%clk 0:02:06]}  Rh8 {[%clk 0:02:10]} 27. Rbf1 {[%clk 0:02:01]}  Ke8 {[%clk 0:02:10]} 28. Bf3 {[%clk 0:01:40]}  Bf4 {[%clk 0:02:02]} 29. Rg2 {[%clk 0:01:38]}  Bc8 {[%clk 0:01:26]} 30. Qd1 {[%clk 0:01:35]}  Qh7 {[%clk 0:01:23]} 31. Rff2 {[%clk 0:01:18]}  Qh4 {[%clk 0:01:21]} 32. Nf1 {[%clk 0:01:15]}  g5 {[%clk 0:01:15]} 33. Qa4+ {[%clk 0:01:03]}  Bd7 {[%clk 0:01:12]} 34. Qxa7 {[%clk 0:01:02]}  Nxd3 {[%clk 0:01:10]} 35. Rc2 {[%clk 0:00:56]}  Ne1 {[%clk 0:01:09]} 36. Qxb6 {[%clk 0:00:47]}  Nxf3 {[%clk 0:01:04]} 37. e5 {[%clk 0:00:34]}  Bxe5 {[%clk 0:00:59]} 38. Qb7 {[%clk 0:00:28]}  g4 {[%clk 0:00:59]} 39. Nd2 {[%clk 0:00:09]}  Qxh2+ {[%clk 0:00:57]} 0-1


[Site "https://www.chess.com"]

[Event "Titled Tuesday Blitz May 16 Late 2023"]
[White "Cooklev, Steven"]
[Black "Xia, Brandon"]
[WhiteFideId "2050552"]
[BlackFideId "30921880"]
[WhiteElo "2294"]
[BlackElo "1924"]
[Result "1-0"]
[Round "09"]
[TimeControl "180+2"]
[Date "2023.05.16"]
[WhiteClock "0:00:22"]
[BlackClock "0:00:44"]

1. e4 {[%clk 0:03:00]}  g6 {[%clk 0:03:00]} 2. d4 {[%clk 0:03:00]}  Bg7 {[%clk 0:03:00]} 3. Nf3 {[%clk 0:03:01]}  d6 {[%clk 0:03:01]} 4. Bc4 {[%clk 0:03:02]}  Nf6 {[%clk 0:02:59]} 5. Qe2 {[%clk 0:03:02]}  O-O {[%clk 0:02:59]} 6. O-O {[%clk 0:03:00]}  Nc6 {[%clk 0:02:59]} 7. h3 {[%clk 0:02:59]}  e5 {[%clk 0:02:58]} 8. dxe5 {[%clk 0:02:58]}  Nxe5 {[%clk 0:02:59]} 9. Nxe5 {[%clk 0:02:56]}  dxe5 {[%clk 0:03:00]} 10. Rd1 {[%clk 0:02:56]}  Qe7 {[%clk 0:02:56]} 11. Bg5 {[%clk 0:02:36]}  Be6 {[%clk 0:02:52]} 12. Nd2 {[%clk 0:02:29]}  Rfd8 {[%clk 0:02:40]} 13. Bb3 {[%clk 0:02:18]}  c6 {[%clk 0:02:34]} 14. Nf3 {[%clk 0:02:01]}  Bxb3 {[%clk 0:02:25]} 15. axb3 {[%clk 0:02:01]}  Qc5 {[%clk 0:02:19]} 16. c3 {[%clk 0:01:59]}  h6 {[%clk 0:02:06]} 17. Be3 {[%clk 0:01:57]}  Qb5 {[%clk 0:01:52]} 18. Rxd8+ {[%clk 0:01:53]}  Rxd8 {[%clk 0:01:52]} 19. Qxb5 {[%clk 0:01:54]}  cxb5 {[%clk 0:01:52]} 20. Rxa7 {[%clk 0:01:53]}  Nxe4 {[%clk 0:01:52]} 21. Rxb7 {[%clk 0:01:53]}  f5 {[%clk 0:01:45]} 22. Rxb5 {[%clk 0:01:44]}  Rd1+ {[%clk 0:01:44]} 23. Kh2 {[%clk 0:01:41]}  Rb1 {[%clk 0:01:42]} 24. Nxe5 {[%clk 0:01:36]}  Rxb2 {[%clk 0:01:35]} 25. Nxg6 {[%clk 0:01:29]}  Nxc3 {[%clk 0:01:31]} 26. Rxf5 {[%clk 0:01:16]}  Rxb3 {[%clk 0:01:28]} 27. Ne7+ {[%clk 0:01:11]}  Kh7 {[%clk 0:01:27]} 28. Rf7 {[%clk 0:01:12]}  Ne2 {[%clk 0:01:12]} 29. Nf5 {[%clk 0:01:09]}  Kg6 {[%clk 0:01:12]} 30. Rxg7+ {[%clk 0:01:04]}  Kxf5 {[%clk 0:01:13]} 31. Bxh6 {[%clk 0:01:01]}  Nd4 {[%clk 0:01:12]} 32. Be3 {[%clk 0:01:00]}  Ne6 {[%clk 0:01:12]} 33. Ra7 {[%clk 0:00:58]}  Rb5 {[%clk 0:01:09]} 34. g4+ {[%clk 0:00:56]}  Kf6 {[%clk 0:01:08]} 35. Kg3 {[%clk 0:00:54]}  Rb1 {[%clk 0:01:05]} 36. h4 {[%clk 0:00:49]}  Nf8 {[%clk 0:01:03]} 37. g5+ {[%clk 0:00:47]}  Kg6 {[%clk 0:01:01]} 38. Ra6+ {[%clk 0:00:47]}  Kh7 {[%clk 0:00:59]} 39. h5 {[%clk 0:00:46]}  Rg1+ {[%clk 0:00:57]} 40. Kf4 {[%clk 0:00:45]}  Rh1 {[%clk 0:00:57]} 41. Ra7+ {[%clk 0:00:38]}  Kg8 {[%clk 0:00:57]} 42. Kg4 {[%clk 0:00:39]}  Rg1+ {[%clk 0:00:57]} 43. Kf5 {[%clk 0:00:39]}  Rh1 {[%clk 0:00:57]} 44. h6 {[%clk 0:00:38]}  Rh3 {[%clk 0:00:57]} 45. Bc5 {[%clk 0:00:27]}  Nh7 {[%clk 0:00:44]} 46. Ra8+ {[%clk 0:00:23]}  Kf7 {[%clk 0:00:44]} 47. g6# {[%clk 0:00:22]} 1-0


[Site "https://www.chess.com"]

[Event "Titled Tuesday Blitz May 16 Late 2023"]
[White "ArchibaldCerveza29"]
[Black "Florianovitz, Derlei Alex"]
[BlackFideId "2114178"]
[WhiteElo "2372"]
[BlackElo "1953"]
[Result "1/2-1/2"]
[Round "09"]
[TimeControl "180+2"]
[Date "2023.05.16"]
[WhiteClock "0:00:16"]
[BlackClock "0:00:16"]

1. d4 {[%clk 0:03:00]}  Nf6 {[%clk 0:02:59]} 2. c4 {[%clk 0:02:58]}  e6 {[%clk 0:02:59]} 3. Nc3 {[%clk 0:02:56]}  Bb4 {[%clk 0:02:58]} 4. f3 {[%clk 0:02:57]}  d5 {[%clk 0:02:57]} 5. a3 {[%clk 0:02:54]}  Bxc3+ {[%clk 0:02:57]} 6. bxc3 {[%clk 0:02:55]}  O-O {[%clk 0:02:56]} 7. e3 {[%clk 0:02:52]}  Re8 {[%clk 0:02:55]} 8. cxd5 {[%clk 0:02:51]}  exd5 {[%clk 0:02:52]} 9. Bd3 {[%clk 0:02:52]}  c5 {[%clk 0:02:51]} 10. Ne2 {[%clk 0:02:51]}  Nc6 {[%clk 0:02:46]} 11. O-O {[%clk 0:02:50]}  cxd4 {[%clk 0:02:44]} 12. cxd4 {[%clk 0:02:49]}  h5 {[%clk 0:02:36]} 13. Ra2 {[%clk 0:02:46]}  b6 {[%clk 0:02:31]} 14. Rc2 {[%clk 0:02:16]}  Na5 {[%clk 0:02:28]} 15. Bb2 {[%clk 0:02:11]}  Bd7 {[%clk 0:02:27]} 16. Qc1 {[%clk 0:02:07]}  Rc8 {[%clk 0:02:19]} 17. Rxc8 {[%clk 0:02:06]}  Qxc8 {[%clk 0:02:20]} 18. Qxc8 {[%clk 0:02:01]}  Bxc8 {[%clk 0:02:21]} 19. Kf2 {[%clk 0:01:49]}  g5 {[%clk 0:02:16]} 20. Rc1 {[%clk 0:01:48]}  h4 {[%clk 0:02:13]} 21. Rc7 {[%clk 0:01:42]}  Bb7 {[%clk 0:02:04]} 22. a4 {[%clk 0:01:23]}  Rc8 {[%clk 0:02:03]} 23. Re7 {[%clk 0:01:22]}  Bc6 {[%clk 0:01:56]} 24. Bf5 {[%clk 0:01:13]}  Re8 {[%clk 0:01:47]} 25. Rxa7 {[%clk 0:01:09]}  Bxa4 {[%clk 0:01:47]} 26. Ra6 {[%clk 0:00:38]}  Bd7 {[%clk 0:01:27]} 27. Rxb6 {[%clk 0:00:27]}  Bxf5 {[%clk 0:01:18]} 28. Rxf6 {[%clk 0:00:27]}  Be6 {[%clk 0:01:08]} 29. e4 {[%clk 0:00:25]}  Kg7 {[%clk 0:01:02]} 30. e5 {[%clk 0:00:24]}  Nc4 {[%clk 0:01:02]} 31. Bc1 {[%clk 0:00:23]}  g4 {[%clk 0:00:57]} 32. Bg5 {[%clk 0:00:19]}  gxf3 {[%clk 0:00:50]} 33. gxf3 {[%clk 0:00:20]}  h3 {[%clk 0:00:50]} 34. Ng3 {[%clk 0:00:19]}  Ra8 {[%clk 0:00:44]} 35. Nh5+ {[%clk 0:00:19]}  Kh7 {[%clk 0:00:44]} 36. Rh6+ {[%clk 0:00:19]}  Kg8 {[%clk 0:00:45]} 37. Bf6 {[%clk 0:00:14]}  Ra2+ {[%clk 0:00:34]} 38. Kg3 {[%clk 0:00:13]}  Rg2+ {[%clk 0:00:26]} 39. Kf4 {[%clk 0:00:13]}  Kf8 {[%clk 0:00:22]} 40. Rh8+ {[%clk 0:00:12]}  Rg8 {[%clk 0:00:22]} 41. Bg7+ {[%clk 0:00:12]}  Ke7 {[%clk 0:00:21]} 42. Rxg8 {[%clk 0:00:13]}  Nb2 {[%clk 0:00:20]} 43. Bf6+ {[%clk 0:00:14]}  Kd7 {[%clk 0:00:20]} 44. Rd8+ {[%clk 0:00:14]}  Kc6 {[%clk 0:00:20]} 45. Rd6+ {[%clk 0:00:15]}  Kc7 {[%clk 0:00:20]} 46. Bd8+ {[%clk 0:00:14]}  Kc8 {[%clk 0:00:19]} 47. Ng7 {[%clk 0:00:14]}  Nc4 {[%clk 0:00:17]} 48. Nxe6 {[%clk 0:00:14]}  Nxd6 {[%clk 0:00:16]} 49. exd6 {[%clk 0:00:15]}  fxe6 {[%clk 0:00:16]} 50. Be7 {[%clk 0:00:15]}  Kd7 {[%clk 0:00:16]} 51. Ke5 {[%clk 0:00:15]}  Ke8 {[%clk 0:00:16]} 52. Kxe6 {[%clk 0:00:16]} 1/2-1/2


[Site "https://www.chess.com"]

[Event "Titled Tuesday Blitz May 16 Late 2023"]
[White "Slavin, Alexey"]
[Black "Torres Dominguez, David"]
[WhiteFideId "24104388"]
[BlackFideId "2220857"]
[WhiteElo "2264"]
[BlackElo "1999"]
[Result "1/2-1/2"]
[Round "09"]
[TimeControl "180+2"]
[Date "2023.05.16"]
[WhiteClock "0:02:30"]
[BlackClock "0:01:55"]

1. e4 {[%clk 0:02:59]}  Nc6 {[%clk 0:02:58]} 2. Nc3 {[%clk 0:02:58]}  e5 {[%clk 0:02:57]} 3. Bb5 {[%clk 0:02:57]}  Bc5 {[%clk 0:02:52]} 4. Nge2 {[%clk 0:02:55]}  Qh4 {[%clk 0:02:46]} 5. O-O {[%clk 0:02:52]}  Nf6 {[%clk 0:02:41]} 6. d3 {[%clk 0:02:50]}  Ng4 {[%clk 0:02:37]} 7. h3 {[%clk 0:02:45]}  Nxf2 {[%clk 0:02:30]} 8. Rxf2 {[%clk 0:02:42]}  Qxf2+ {[%clk 0:02:30]} 9. Kh1 {[%clk 0:02:42]}  d6 {[%clk 0:02:21]} 10. Nd5 {[%clk 0:02:41]}  Bxh3 {[%clk 0:02:12]} 11. gxh3 {[%clk 0:02:32]}  Qf3+ {[%clk 0:02:11]} 12. Kh2 {[%clk 0:02:30]}  Qf2+ {[%clk 0:02:07]} 13. Kh1 {[%clk 0:02:30]}  Qf3+ {[%clk 0:02:03]} 14. Kh2 {[%clk 0:02:30]}  Qf2+ {[%clk 0:01:55]} 15. Kh1 {[%clk 0:02:30]} 1/2-1/2


[Site "https://www.chess.com"]

[Event "Titled Tuesday Blitz May 16 Late 2023"]
[White "Fishbein, Mitch"]
[Black "Hoffmann, Asa"]
[WhiteFideId "30922917"]
[BlackFideId "2001470"]
[WhiteElo "1964"]
[BlackElo "2117"]
[Result "1-0"]
[Round "09"]
[TimeControl "180+2"]
[Date "2023.05.16"]
[WhiteClock "0:00:11"]
[BlackClock "0:00:34"]

1. e4 {[%clk 0:02:55]}  d6 {[%clk 0:02:47]} 2. d4 {[%clk 0:02:55]}  Nf6 {[%clk 0:02:46]} 3. Bd3 {[%clk 0:02:54]}  e5 {[%clk 0:02:46]} 4. c3 {[%clk 0:02:54]}  Nc6 {[%clk 0:02:45]} 5. Nf3 {[%clk 0:02:52]}  Bg4 {[%clk 0:02:45]} 6. dxe5 {[%clk 0:02:50]}  dxe5 {[%clk 0:02:44]} 7. O-O {[%clk 0:02:47]}  Bc5 {[%clk 0:02:43]} 8. a4 {[%clk 0:02:40]}  a6 {[%clk 0:02:42]} 9. Qe2 {[%clk 0:02:29]}  Qe7 {[%clk 0:02:42]} 10. b4 {[%clk 0:02:24]}  Ba7 {[%clk 0:02:40]} 11. Nbd2 {[%clk 0:02:21]}  O-O {[%clk 0:02:40]} 12. Nc4 {[%clk 0:02:18]}  Rfd8 {[%clk 0:02:35]} 13. Bc2 {[%clk 0:02:15]}  Rd7 {[%clk 0:02:06]} 14. b5 {[%clk 0:02:07]}  Nb8 {[%clk 0:01:53]} 15. Ne3 {[%clk 0:01:53]}  Bxf3 {[%clk 0:01:45]} 16. Qxf3 {[%clk 0:01:50]}  g6 {[%clk 0:01:32]} 17. Bb3 {[%clk 0:01:44]}  Kg7 {[%clk 0:01:29]} 18. g4 {[%clk 0:01:23]}  h6 {[%clk 0:01:26]} 19. h4 {[%clk 0:01:23]}  c6 {[%clk 0:01:19]} 20. Kg2 {[%clk 0:00:52]}  Bc5 {[%clk 0:01:13]} 21. Bb2 {[%clk 0:00:45]}  axb5 {[%clk 0:01:11]} 22. axb5 {[%clk 0:00:45]}  Rxa1 {[%clk 0:01:10]} 23. Rxa1 {[%clk 0:00:46]}  cxb5 {[%clk 0:01:07]} 24. Nd5 {[%clk 0:00:34]}  Nxd5 {[%clk 0:01:04]} 25. Bxd5 {[%clk 0:00:35]}  Nc6 {[%clk 0:01:04]} 26. Kg3 {[%clk 0:00:29]}  Qf6 {[%clk 0:01:01]} 27. Bc1 {[%clk 0:00:22]}  Qxf3+ {[%clk 0:00:57]} 28. Kxf3 {[%clk 0:00:23]}  b4 {[%clk 0:00:56]} 29. cxb4 {[%clk 0:00:20]}  Nxb4 {[%clk 0:00:56]} 30. Bb2 {[%clk 0:00:18]}  Nxd5 {[%clk 0:00:54]} 31. Bxe5+ {[%clk 0:00:16]}  f6 {[%clk 0:00:54]} 32. exd5 {[%clk 0:00:12]}  fxe5 {[%clk 0:00:53]} 33. Ke4 {[%clk 0:00:13]}  Bd4 {[%clk 0:00:53]} 34. Rb1 {[%clk 0:00:12]}  Kf7 {[%clk 0:00:51]} 35. f4 {[%clk 0:00:12]}  Kf6 {[%clk 0:00:51]} 36. g5+ {[%clk 0:00:12]}  hxg5 {[%clk 0:00:50]} 37. hxg5+ {[%clk 0:00:13]}  Ke7 {[%clk 0:00:49]} 38. fxe5 {[%clk 0:00:13]}  Bc5 {[%clk 0:00:48]} 39. Rh1 {[%clk 0:00:13]}  Kd8 {[%clk 0:00:47]} 40. Rh6 {[%clk 0:00:11]}  Rg7 {[%clk 0:00:46]} 41. d6 {[%clk 0:00:10]}  Kd7 {[%clk 0:00:45]} 42. Kd5 {[%clk 0:00:10]}  Be3 {[%clk 0:00:44]} 43. e6+ {[%clk 0:00:10]}  Ke8 {[%clk 0:00:34]} 44. Rh8+ {[%clk 0:00:11]} 1-0


[Site "https://www.chess.com"]

[Event "Titled Tuesday Blitz May 16 Late 2023"]
[White "Ollier, Pablo"]
[Black "Marcziter, Dmitrii"]
[WhiteFideId "652318"]
[BlackFideId "13900765"]
[WhiteElo "2477"]
[BlackElo "2162"]
[Result "0-1"]
[Round "09"]
[TimeControl "180+2"]
[Date "2023.05.16"]
[WhiteClock "0:00:04"]
[BlackClock "0:01:11"]

1. d4 {[%clk 0:03:00]}  Nf6 {[%clk 0:02:59]} 2. c4 {[%clk 0:03:00]}  g6 {[%clk 0:02:58]} 3. Nc3 {[%clk 0:03:00]}  Bg7 {[%clk 0:02:58]} 4. e4 {[%clk 0:02:59]}  d6 {[%clk 0:02:58]} 5. Nf3 {[%clk 0:03:00]}  O-O {[%clk 0:02:59]} 6. Be2 {[%clk 0:03:00]}  Na6 {[%clk 0:02:59]} 7. Bf4 {[%clk 0:03:00]}  c5 {[%clk 0:02:55]} 8. d5 {[%clk 0:02:55]}  Nh5 {[%clk 0:02:55]} 9. Bg5 {[%clk 0:02:53]}  h6 {[%clk 0:02:54]} 10. Be3 {[%clk 0:02:51]}  e6 {[%clk 0:02:52]} 11. O-O {[%clk 0:02:47]}  Re8 {[%clk 0:02:51]} 12. Qd2 {[%clk 0:02:45]}  Kh7 {[%clk 0:02:51]} 13. dxe6 {[%clk 0:02:30]}  Bxe6 {[%clk 0:02:50]} 14. Rad1 {[%clk 0:02:29]}  Qb6 {[%clk 0:02:48]} 15. b3 {[%clk 0:02:15]}  Rad8 {[%clk 0:02:47]} 16. Bd3 {[%clk 0:02:06]}  Nb4 {[%clk 0:02:44]} 17. Bb1 {[%clk 0:02:06]}  Nc6 {[%clk 0:02:44]} 18. h3 {[%clk 0:01:56]}  Nf6 {[%clk 0:02:42]} 19. Nd5 {[%clk 0:01:49]}  Bxd5 {[%clk 0:02:40]} 20. exd5 {[%clk 0:01:48]}  Ne5 {[%clk 0:02:35]} 21. Nxe5 {[%clk 0:01:40]}  Rxe5 {[%clk 0:02:34]} 22. f4 {[%clk 0:01:30]}  Re7 {[%clk 0:02:32]} 23. f5 {[%clk 0:01:26]}  g5 {[%clk 0:02:31]} 24. h4 {[%clk 0:01:07]}  Rde8 {[%clk 0:02:30]} 25. Bxg5 {[%clk 0:00:56]}  hxg5 {[%clk 0:02:28]} 26. hxg5 {[%clk 0:00:57]}  Kg8 {[%clk 0:02:10]} 27. gxf6 {[%clk 0:00:42]}  Bxf6 {[%clk 0:02:09]} 28. Qh6 {[%clk 0:00:42]}  Bg7 {[%clk 0:02:06]} 29. Qh5 {[%clk 0:00:32]}  Re5 {[%clk 0:01:52]} 30. Rd3 {[%clk 0:00:28]}  Qd8 {[%clk 0:01:47]} 31. Rh3 {[%clk 0:00:13]}  Qf6 {[%clk 0:01:44]} 32. Qg4 {[%clk 0:00:12]}  Re3 {[%clk 0:01:32]} 33. Rh5 {[%clk 0:00:11]}  Re1 {[%clk 0:01:24]} 34. Bd3 {[%clk 0:00:07]}  R8e3 {[%clk 0:01:16]} 35. Rxe1 {[%clk 0:00:05]}  Rxe1+ {[%clk 0:01:15]} 36. Bf1 {[%clk 0:00:05]}  Qd4+ {[%clk 0:01:11]} 37. Qxd4 {[%clk 0:00:06]}  Bxd4+ {[%clk 0:01:11]} 38. Kh2 {[%clk 0:00:04]}  Rxf1 {[%clk 0:01:11]} 0-1


[Site "https://www.chess.com"]